fUSD/lending_fUSD_20251210
["ID","MTS","AMOUNT","RATE_DAILY","PERIOD"]
[398065019,1765347062806,-500.0,0.00015331,2]
[398065020,1765347062817,-696.7,0.00015331,2]
[398065021,1765347062827,-283.88720808,0.00015331,2]
[398065022,1765347062837,-500.0,0.00015331,2]
[398065023,1765347062848,-500.0,0.00015331,2]
[398065024,1765347062858,-500.0,0.00015331,2]
[398065025,1765347062868,-500.0,0.00015331,2]
[398065026,1765347062878,-605.41,0.00015331,2]
[398065027,1765347062887,-500.0,0.00015331,2]
[398065028,1765347062897,-500.0,0.00015331,2]
[398065029,1765347062908,-500.0,0.00015331,2]
[398065030,1765347062919,-602.38,0.00015331,2]
[398065031,1765347062929,-589.96,0.00015331,2]
[398065032,1765347062939,-662.13,0.00015331,2]
[398065033,1765347062949,-500.0,0.00015331,2]
[398065034,1765347062959,-500.0,0.00015331,2]
[398065035,1765347062968,-500.0,0.00015331,2]
[398065036,1765347062978,-554.01,0.00015331,2]
[398065037,1765347062987,-500.0,0.00015331,2]
[398065038,1765347062997,-500.0,0.00015331,2]
[398065039,1765347063008,-326.55304861,0.00015331,2]
[398065040,1765347063019,-500.0,0.00015331,2]
[398065041,1765347063029,-500.0,0.00015331,2]
[398065042,1765347063039,-500.0,0.00015331,2]
[398065043,1765347063048,-500.0,0.00015331,2]
[398065044,1765347063058,-500.0,0.00015331,2]
[398065045,1765347063067,-501.58,0.00015331,2]
[398065046,1765347063077,-500.0,0.00015331,2]
[398065047,1765347063087,-637.32,0.00015331,2]
[398065048,1765347063096,-500.0,0.00015331,2]
[398065049,1765347063105,-500.0,0.00015331,2]
[398065050,1765347063115,-500.0,0.00015331,2]
[398065051,1765347063124,-500.0,0.00015331,2]
[398065052,1765347063134,-518.05,0.00015331,2]
[398065053,1765347063143,-542.38,0.00015331,2]
[398065054,1765347063152,-500.0,0.00015331,2]
[398065055,1765347063162,-637.96,0.00015331,2]
[398065056,1765347063171,-500.0,0.00015331,2]
[398065057,1765347063180,-500.0,0.00015331,2]
[398065058,1765347063190,-500.0,0.00015331,2]
[398065059,1765347063199,-681.27,0.00015331,2]
[398065060,1765347063209,-500.0,0.00015331,2]
[398065061,1765347063218,-634.46,0.00015331,2]
[398065062,1765347063227,-500.0,0.00015331,2]
[398065063,1765347063236,-508.10848522,0.00015331,2]
[398065064,1765347063247,-500.0,0.00015331,2]
[398065065,1765347063256,-1244.12,0.00015331,2]
[398065066,1765347063266,-500.0,0.00015331,2]
[398065067,1765347063275,-504.31536507,0.00015331,2]
[398065068,1765347063285,-500.0,0.00015331,2]
[398065069,1765347063295,-902.63,0.00015331,2]
[398065070,1765347063305,-669.87,0.00015331,2]
[398065071,1765347063315,-500.0,0.00015331,2]
[398065072,1765347063324,-1091.07,0.00015331,2]
[398065073,1765347063334,-580.42,0.00015331,2]
[398065074,1765347063343,-657.23,0.00015331,2]
[398065075,1765347063353,-500.0,0.00015331,2]
[398065076,1765347063362,-500.0,0.00015331,2]
[398065077,1765347063371,-500.0,0.00015331,2]
[398065078,1765347063380,-500.0,0.00015331,2]
[398065079,1765347063390,-500.0,0.00015331,2]
[398065080,1765347063399,-729.75,0.00015331,2]
[398065081,1765347063409,-500.0,0.00015331,2]
[398065082,1765347063418,-589.01092589,0.00015331,2]
[398065083,1765347063427,-500.0,0.00015331,2]
[398065084,1765347063440,-1106.84,0.00015331,2]
[398065085,1765347063450,-582.65,0.00015331,2]
[398065086,1765347063460,-696.92,0.00015331,2]
[398065087,1765347063469,-219.16043299,0.00015331,2]
[398065088,1765347063479,-500.0,0.00015331,2]
[398065089,1765347063488,-500.0,0.00015331,2]
[398065090,1765347063498,-500.0,0.00015331,2]
[398065091,1765347063508,-554.02,0.00015331,2]
[398065092,1765347063518,-500.0,0.00015331,2]
[398065093,1765347063528,-500.0,0.00015331,2]
[398065094,1765347063540,-500.0,0.00015331,2]
[398065095,1765347063551,-640.08,0.00015331,2]
[398065096,1765347063561,-541.93266075,0.00015331,2]
[398065097,1765347063574,-503.75286077,0.00015331,2]
[398065098,1765347063584,-276.74062202,0.00015331,2]
[398065099,1765347063594,-720.8,0.00015331,2]
[398065100,1765347063605,-500.0,0.00015331,2]
[398065101,1765347063615,-500.0,0.00015331,2]
[398065102,1765347063625,-500.0,0.00015331,2]
[398065103,1765347063635,-773.69,0.00015331,2]
[398065104,1765347063644,-500.0,0.00015331,2]
[398065105,1765347063654,-800.93,0.00015331,2]
[398065106,1765347063664,-500.0,0.00015331,2]
[398065107,1765347063674,-500.0,0.00015331,2]
[398065108,1765347063684,-560.94,0.00015331,2]
[398065109,1765347063694,-706.17,0.00015331,2]
[398065110,1765347063703,-757.21,0.00015331,2]
[398065111,1765347063713,-500.0,0.00015331,2]
[398065112,1765347063730,-1981.28,0.00015331,2]
[398065113,1765347063750,-500.0,0.00015331,2]
[398065114,1765347063764,-500.0,0.00015331,2]
[398065115,1765347063773,-500.0,0.00015331,2]
[398065116,1765347063783,-500.0,0.00015331,2]
[398065117,1765347063793,-1627.45,0.00015331,2]
[398065118,1765347063803,-500.0,0.00015331,2]
[398065119,1765347063812,-500.0,0.00015331,2]
[398065120,1765347063822,-500.0,0.00015331,2]
[398065121,1765347063831,-500.0,0.00015331,2]
[398065122,1765347063841,-500.0,0.00015331,2]
[398065123,1765347063851,-500.0,0.00015331,2]
[398065124,1765347063861,-724.49,0.00015331,2]
[398065125,1765347063871,-500.0,0.00015331,2]
[398065126,1765347063881,-677.55,0.00015331,2]
[398065127,1765347063891,-500.0,0.00015331,2]
[398065128,1765347063901,-500.0,0.00015331,2]
[398065129,1765347063911,-336.40918691,0.00015331,2]
[398065130,1765347063921,-500.0,0.00015331,2]
[398065131,1765347063931,-500.0,0.00015331,2]
[398065132,1765347063940,-500.0,0.00015331,2]
[398065133,1765347063950,-500.0,0.00015331,2]
[398065134,1765347063960,-818.22,0.00015331,2]
[398065135,1765347063970,-500.0,0.00015331,2]
[398065136,1765347063979,-500.0,0.00015331,2]
[398065137,1765347063989,-500.0,0.00015331,2]
[398065138,1765347063998,-500.0,0.00015331,2]
[398065139,1765347064009,-500.0,0.00015331,2]
[398065140,1765347064019,-692.88,0.00015331,2]
[398065141,1765347064032,-500.0,0.00015331,2]
[398065142,1765347064042,-500.0,0.00015331,2]
[398065143,1765347064051,-1049.41,0.00015331,2]
[398065144,1765347064060,-594.47,0.00015331,2]
[398065145,1765347064070,-500.0,0.00015331,2]
[398065146,1765347064080,-500.0,0.00015331,2]
[398065147,1765347064089,-500.0,0.00015331,2]
[398065148,1765347064099,-500.0,0.00015331,2]
[398065149,1765347064108,-502.76573073,0.00015331,2]
[398065150,1765347064117,-500.0,0.00015331,2]
[398065151,1765347064127,-500.0,0.00015331,2]
[398065152,1765347064137,-776.83,0.00015331,2]
[398065153,1765347064146,-982.63,0.00015331,2]
[398065154,1765347064155,-500.0,0.00015331,2]
[398065155,1765347064165,-500.0,0.00015331,2]
[398065156,1765347064175,-500.0,0.00015331,2]
[398065157,1765347064184,-500.0,0.00015331,2]
[398065158,1765347064194,-181.05,0.00015331,2]
[398065159,1765347064204,-500.0,0.00015331,2]
[398065160,1765347064213,-649.85,0.00015331,2]
[398065161,1765347064223,-500.0,0.00015331,2]
[398065162,1765347064237,-500.0,0.00015331,2]
[398065163,1765347064246,-500.0,0.00015331,2]
[398065164,1765347064255,-500.0,0.00015331,2]
[398065165,1765347064264,-545.43,0.00015331,2]
[398065166,1765347064274,-500.0,0.00015331,2]
[398065167,1765347064284,-662.67,0.00015331,2]
[398065168,1765347064293,-500.0,0.00015331,2]
[398065169,1765347064302,-500.0,0.00015331,2]
[398065170,1765347064312,-500.0,0.00015331,2]
[398065171,1765347064321,-500.0,0.00015331,2]
[398065172,1765347064330,-539.08,0.00015331,2]
[398065173,1765347064339,-500.0,0.00015331,2]
[398065174,1765347064349,-500.0,0.00015331,2]
[398065175,1765347064359,-500.0,0.00015331,2]
[398065176,1765347064368,-822.6,0.00015331,2]
[398065177,1765347064377,-1297.76,0.00015331,2]
[398065178,1765347064386,-500.0,0.00015331,2]
[398065179,1765347064396,-629.8194035,0.00015331,2]
[398065180,1765347064405,-500.0,0.00015331,2]
[398065181,1765347064415,-500.0,0.00015331,2]
[398065182,1765347064425,-500.0,0.00015331,2]
[398065183,1765347064435,-780.91,0.00015331,2]
[398065184,1765347064445,-500.0,0.00015331,2]
[398065185,1765347064454,-500.0,0.00015331,2]
[398065186,1765347064464,-600.08,0.00015331,2]
[398065187,1765347064474,-500.0,0.00015331,2]
[398065188,1765347064483,-344.55836063,0.00015331,2]
[398065189,1765347064493,-500.0,0.00015331,2]
[398065190,1765347064503,-637.35,0.00015331,2]
[398065191,1765347064747,-500.0,0.00015331,2]
[398065192,1765347064757,-181.28385567,0.00015331,2]
[398065193,1765347064768,-1033.89,0.00015331,2]
[398065194,1765347064777,-500.0,0.00015331,2]
[398065195,1765347064787,-746.84,0.00015331,2]
[398065196,1765347064796,-500.0,0.00015331,2]
[398065197,1765347064805,-537.3,0.00015331,2]
[398065198,1765347064815,-500.0,0.00015331,2]
[398065199,1765347064824,-500.0,0.00015331,2]
[398065200,1765347064834,-500.0,0.00015331,2]
[398065201,1765347064843,-500.0,0.00015331,2]
[398065202,1765347064852,-749.61,0.00015331,2]
[398065203,1765347064862,-297.85268989,0.00015331,2]
[398065204,1765347064872,-500.0,0.00015331,2]
[398065205,1765347064881,-500.0,0.00015331,2]
[398065206,1765347064891,-617.78,0.00015331,2]
[398065207,1765347064901,-500.0,0.00015331,2]
[398065208,1765347064910,-580.79,0.00015331,2]
[398065209,1765347064920,-546.82,0.00015331,2]
[398065210,1765347064934,-500.0,0.00015331,2]
[398065211,1765347064944,-500.0,0.00015331,2]
[398065212,1765347064953,-500.0,0.00015331,2]
[398065213,1765347064963,-654.02,0.00015331,2]
[398065214,1765347064973,-572.94,0.00015331,2]
[398065215,1765347064982,-500.0,0.00015331,2]
[398065216,1765347064991,-672.81,0.00015331,2]
[398065217,1765347065000,-611.17,0.00015331,2]
[398065218,1765347065010,-500.0,0.00015331,2]
[398065219,1765347065019,-1256.7,0.00015331,2]
[398065220,1765347065028,-500.0,0.00015331,2]
[398065221,1765347065038,-500.0,0.00015331,2]
[398065222,1765347065047,-539.96,0.00015331,2]
[398065223,1765347065057,-751.97,0.00015331,2]
[398065224,1765347065066,-500.0,0.00015331,2]
[398065225,1765347065075,-514.54,0.00015331,2]
[398065226,1765347065085,-500.0,0.00015331,2]
[398065227,1765347065094,-500.0,0.00015331,2]
[398065228,1765347065103,-500.0,0.00015331,2]
[398065229,1765347065112,-539.07,0.00015331,2]
[398065230,1765347065122,-1216.38,0.00015331,2]
[398065231,1765347065133,-536.23,0.00015331,2]
[398065232,1765347065143,-500.0,0.00015331,2]
[398065233,1765347065152,-500.0,0.00015331,2]
[398065234,1765347065162,-500.0,0.00015331,2]
[398065235,1765347065172,-500.0,0.00015331,2]
[398065236,1765347065181,-532.50534713,0.00015331,2]
[398065237,1765347065191,-529.35,0.00015331,2]
[398065238,1765347065200,-291.1398692,0.00015331,2]
[398065239,1765347065210,-500.0,0.00015331,2]
[398065240,1765347065219,-694.48,0.00015331,2]
[398065241,1765347065229,-500.0,0.00015331,2]
[398065242,1765347065239,-500.0,0.00015331,2]
[398065243,1765347065248,-500.0,0.00015331,2]
[398065244,1765347065258,-500.0,0.00015331,2]
[398065245,1765347065267,-500.0,0.00015331,2]
[398065246,1765347065276,-423.22168018,0.00015331,2]
[398065247,1765347065285,-2182.19,0.00015331,2]
[398065248,1765347065294,-1007.11,0.00015331,2]
[398065249,1765347065304,-500.0,0.00015331,2]
[398065250,1765347065313,-500.0,0.00015331,2]
[398065251,1765347065323,-500.0,0.00015331,2]
[398065252,1765347065332,-500.0,0.00015331,2]
[398065253,1765347065341,-4341.1,0.00015331,2]
[398065254,1765347065351,-943.08,0.00015331,2]
[398065255,1765347065360,-500.0,0.00015331,2]
[398065256,1765347065370,-645.97456182,0.00015331,2]
[398065257,1765347065379,-3571.51,0.00015331,2]
[398065258,1765347065389,-500.0,0.00015331,2]
[398065259,1765347065399,-500.0,0.00015331,2]
[398065260,1765347065408,-600.7,0.00015331,2]
[398065261,1765347065417,-500.0,0.00015331,2]
[398065262,1765347065427,-500.0,0.00015331,2]
[398065263,1765347065436,-750.33,0.00015331,2]
[398065264,1765347065445,-500.0,0.00015331,2]
[398065265,1765347065454,-500.0,0.00015331,2]
[398065266,1765347065463,-682.66,0.00015331,2]
[398065267,1765347065473,-500.0,0.00015331,2]
[398065268,1765347065482,-568.22,0.00015331,2]
[398065269,1765347065491,-500.0,0.00015331,2]
[398065270,1765347065501,-650.98,0.00015331,2]
[398065271,1765347065516,-500.0,0.00015331,2]
[398065272,1765347065530,-500.0,0.00015331,2]
[398065273,1765347065541,-500.0,0.00015331,2]
[398065274,1765347065552,-500.0,0.00015331,2]
[398065275,1765347065563,-506.52373449,0.00015331,2]
[398065276,1765347065580,-500.0,0.00015331,2]
[398065277,1765347065590,-500.0,0.00015331,2]
[398065278,1765347065600,-500.0,0.00015331,2]
[398065279,1765347065611,-1232.43,0.00015331,2]
[398065280,1765347065621,-500.0,0.00015331,2]
[398065281,1765347065630,-500.0,0.00015331,2]
[398065282,1765347065641,-500.0,0.00015331,2]
[398065283,1765347065652,-661.23,0.00015331,2]
[398065284,1765347065662,-500.0,0.00015331,2]
[398065285,1765347065672,-934.02,0.00015331,2]
[398065286,1765347065682,-500.0,0.00015331,2]
[398065287,1765347065692,-500.0,0.00015331,2]
[398065288,1765347065703,-500.0,0.00015331,2]
[398065289,1765347065712,-749.67,0.00015331,2]
[398065290,1765347065722,-500.0,0.00015331,2]
[398065291,1765347065731,-627.15,0.00015331,2]
[398065292,1765347065741,-500.0,0.00015331,2]
[398065293,1765347065751,-946.19,0.00015331,2]
[398065294,1765347065762,-500.0,0.00015331,2]
[398065295,1765347065771,-1375.75,0.00015331,2]
[398065296,1765347065781,-596.17,0.00015331,2]
[398065297,1765347065791,-730.95,0.00015331,2]
[398065298,1765347065800,-500.0,0.00015331,2]
[398065299,1765347065810,-512.71,0.00015331,2]
[398065300,1765347065820,-500.0,0.00015331,2]
[398065301,1765347065830,-500.0,0.00015331,2]
[398065302,1765347065840,-862.42,0.00015331,2]
[398065303,1765347065851,-1022.0,0.00015331,2]
[398065304,1765347065861,-505.03038004,0.00015331,2]
[398065305,1765347065870,-576.65,0.00015331,2]
[398065306,1765347065880,-500.0,0.00015331,2]
[398065307,1765347065890,-500.0,0.00015331,2]
[398065308,1765347065899,-699.6,0.00015331,2]
[398065309,1765347065910,-500.0,0.00015331,2]
[398065310,1765347065920,-500.0,0.00015331,2]
[398065311,1765347065930,-500.0,0.00015331,2]
[398065312,1765347065939,-506.01513027,0.00015331,2]
[398065313,1765347065949,-500.0,0.00015331,2]
[398065314,1765347065959,-1038.26,0.00015331,2]
[398065315,1765347065968,-224.43512762,0.00015331,2]
[398065316,1765347065978,-500.0,0.00015331,2]
[398065317,1765347065987,-500.0,0.00015331,2]
[398065318,1765347066002,-500.0,0.00015331,2]
[398065319,1765347066012,-500.0,0.00015331,2]
[398065320,1765347066022,-745.61,0.00015331,2]
[398065321,1765347066032,-500.0,0.00015331,2]
[398065322,1765347066041,-500.0,0.00015331,2]
[398065323,1765347066051,-287.70927608,0.00015331,2]
[398065324,1765347066060,-500.0,0.00015331,2]
[398065325,1765347066069,-509.12089266,0.00015331,2]
[398065326,1765347066079,-1019.92,0.00015331,2]
[398065327,1765347066088,-537.08,0.00015331,2]
[398065328,1765347066097,-507.84141039,0.00015331,2]
[398065329,1765347066107,-621.27,0.00015331,2]
[398065330,1765347066117,-500.0,0.00015331,2]
[398065331,1765347066126,-500.0,0.00015331,2]
[398065332,1765347066136,-500.0,0.00015331,2]
[398065333,1765347066149,-751.18,0.00015331,2]
[398065334,1765347066158,-3038.25,0.00015331,2]
[398065335,1765347066168,-505.64573189,0.00015331,2]
[398065336,1765347066177,-500.0,0.00015331,2]
[398065337,1765347066186,-500.0,0.00015331,2]
[398065338,1765347066196,-500.0,0.00015331,2]
[398065339,1765347066206,-500.0,0.00015331,2]
[398065340,1765347066215,-500.0,0.00015331,2]
[398065341,1765347066227,-563.13,0.00015331,2]
[398065342,1765347066238,-500.0,0.00015331,2]
[398065343,1765347066248,-505.57,0.00015331,2]
[398065344,1765347066258,-500.0,0.00015331,2]
[398065345,1765347066268,-1000.0,0.00015331,2]
[398065346,1765347066279,-528.38,0.00015331,2]
[398065347,1765347066289,-500.0,0.00015331,2]
[398065348,1765347066299,-500.0,0.00015331,2]
[398065349,1765347066312,-1251.88,0.00015331,2]
[398065350,1765347066327,-500.0,0.00015331,2]
[398065351,1765347066336,-500.0,0.00015331,2]
[398065352,1765347066345,-500.0,0.00015331,2]
[398065353,1765347066355,-500.0,0.00015331,2]
[398065354,1765347066365,-500.0,0.00015331,2]
[398065355,1765347066374,-657.82,0.00015331,2]
[398065356,1765347066383,-500.0,0.00015331,2]
[398065357,1765347066393,-790.37,0.00015331,2]
[398065358,1765347066403,-500.0,0.00015331,2]
[398065359,1765347066412,-500.0,0.00015331,2]
[398065360,1765347066422,-627.15,0.00015331,2]
[398065361,1765347066432,-773.23,0.00015331,2]
[398065362,1765347066442,-500.0,0.00015331,2]
[398065363,1765347066451,-513.67,0.00015331,2]
[398065364,1765347066460,-500.0,0.00015331,2]
[398065365,1765347066470,-500.0,0.00015331,2]
[398065366,1765347066479,-500.0,0.00015331,2]
[398065367,1765347066489,-641.70451622,0.00015331,2]
[398065368,1765347066499,-545.71,0.00015331,2]
[398065369,1765347066509,-500.0,0.00015331,2]
[398065370,1765347066518,-739.12,0.00015331,2]
[398065371,1765347066528,-3120.55,0.00015331,2]
[398065372,1765347066537,-2812.0,0.00015352,2]
[398065373,1765347066546,-500.0,0.00015391,2]
[398065374,1765347066556,-150.0,0.00015396,2]
[398065375,1765347066566,-231.14342234,0.00015396,2]
[398065376,1765347066578,-150.0,0.00015396,2]
[398065377,1765347066587,-169.6143275,0.00015396,2]
[398065378,1765347066597,-502.76831288,0.00015417,2]
[398065379,1765347066607,-202.13941671,0.00015417,2]
[398065380,1765347066617,-252.79447534,0.00015429,2]
[398065381,1765347066627,-675.94,0.0001543,2]
[398065382,1765347066636,-500.0,0.00015431,2]
[398065383,1765347066645,-500.0,0.00015431,2]
[398065384,1765347066655,-500.0,0.00015431,2]
[398065385,1765347066665,-500.0,0.00015431,2]
[398065386,1765347066675,-500.0,0.00015431,2]
[398065387,1765347066684,-500.0,0.00015431,2]
[398065388,1765347066694,-500.0,0.00015431,2]
[398065389,1765347066704,-500.0,0.00015431,2]
[398065390,1765347066714,-500.0,0.00015431,2]
[398065391,1765347066724,-500.0,0.00015431,2]
[398065392,1765347066733,-500.0,0.00015431,2]
[398065393,1765347066743,-500.0,0.00015431,2]
[398065394,1765347066753,-777.38,0.00015431,2]
[398065395,1765347066763,-500.0,0.00015431,2]
[398065396,1765347066773,-500.0,0.00015431,2]
[398065397,1765347066783,-500.0,0.00015431,2]
[398065398,1765347066793,-500.0,0.00015431,2]
[398065399,1765347066802,-925.32,0.00015431,2]
[398065400,1765347066812,-500.0,0.00015431,2]
[398065401,1765347066822,-500.42,0.00015431,2]
[398065402,1765347066831,-511.05055071,0.00015431,2]
[398065403,1765347066840,-500.0,0.00015431,2]
[398065404,1765347066850,-500.0,0.00015431,2]
[398065405,1765347066859,-195.1,0.00015431,2]
[398065406,1765347066869,-500.0,0.00015431,2]
[398065407,1765347066878,-500.0,0.00015431,2]
[398065408,1765347066887,-668.06,0.00015431,2]
[398065409,1765347066897,-500.0,0.00015431,2]
[398065410,1765347066906,-899.71,0.00015431,2]
[398065411,1765347066915,-500.0,0.00015431,2]
[398065412,1765347066924,-500.0,0.00015431,2]
[398065413,1765347066933,-535.42632381,0.00015431,2]
[398065414,1765347066943,-760.63,0.00015431,2]
[398065415,1765347066953,-500.0,0.00015431,2]
[398065416,1765347066962,-516.31,0.00015431,2]
[398065417,1765347066972,-500.0,0.00015431,2]
[398065418,1765347066981,-789.6,0.00015431,2]
[398065419,1765347066991,-500.0,0.00015431,2]
[398065420,1765347067000,-500.0,0.00015431,2]
[398065421,1765347067010,-840.12,0.00015431,2]
[398065422,1765347067019,-500.0,0.00015431,2]
[398065423,1765347067028,-2123.57,0.00015431,2]
[398065424,1765347067037,-500.0,0.00015431,2]
[398065425,1765347067047,-500.0,0.00015431,2]
[398065426,1765347067056,-500.0,0.00015431,2]
[398065427,1765347067066,-784.32,0.00015431,2]
[398065428,1765347067075,-500.0,0.00015431,2]
[398065429,1765347067160,-500.0,0.00015431,2]
[398065430,1765347067170,-500.0,0.00015431,2]
[398065431,1765347067179,-747.43,0.00015431,2]
[398065432,1765347067188,-500.0,0.00015431,2]
[398065433,1765347067198,-444.03,0.00015431,2]
[398065434,1765347067207,-535.28,0.00015431,2]
[398065435,1765347067216,-590.77,0.00015431,2]
[398065436,1765347067226,-500.0,0.00015431,2]
[398065437,1765347067235,-500.0,0.00015431,2]
[398065438,1765347067244,-500.0,0.00015431,2]
[398065439,1765347067253,-500.0,0.00015431,2]
[398065440,1765347067263,-1265.31,0.00015431,2]
[398065441,1765347067272,-916.9,0.00015431,2]
[398065442,1765347067280,-500.0,0.00015431,2]
[398065443,1765347067289,-767.23,0.00015431,2]
[398065444,1765347067298,-500.0,0.00015431,2]
[398065445,1765347067307,-500.0,0.00015431,2]
[398065446,1765347067315,-500.0,0.00015431,2]
[398065447,1765347067324,-757.82,0.00015431,2]
[398065448,1765347067333,-500.0,0.00015431,2]
[398065449,1765347067342,-843.39,0.00015431,2]
[398065450,1765347067351,-516.97,0.00015431,2]
[398065451,1765347067360,-500.0,0.00015431,2]
[398065452,1765347067369,-1193.39,0.00015431,2]
[398065453,1765347067378,-500.0,0.00015431,2]
[398065454,1765347067387,-500.0,0.00015431,2]
[398065455,1765347067396,-914.06,0.00015431,2]
[398065456,1765347067405,-500.0,0.00015431,2]
[398065457,1765347067414,-500.0,0.00015431,2]
[398065458,1765347067423,-500.0,0.00015431,2]
[398065459,1765347067434,-1104.1,0.00015431,2]
[398065460,1765347067443,-630.25,0.00015431,2]
[398065461,1765347067452,-500.0,0.00015431,2]
[398065462,1765347067462,-607.49,0.00015431,2]
[398065463,1765347067471,-555.54,0.00015431,2]
[398065464,1765347067480,-500.0,0.00015431,2]
[398065465,1765347067489,-591.62,0.00015431,2]
[398065466,1765347067498,-565.82,0.00015431,2]
[398065467,1765347067508,-1008.62,0.00015431,2]
[398065468,1765347067517,-500.0,0.00015431,2]
[398065469,1765347067526,-500.0,0.00015431,2]
[398065470,1765347067535,-500.0,0.00015431,2]
[398065471,1765347067544,-606.52,0.00015431,2]
[398065472,1765347067553,-500.0,0.00015431,2]
[398065473,1765347067562,-500.0,0.00015431,2]
[398065474,1765347067575,-500.0,0.00015431,2]
[398065475,1765347067583,-500.0,0.00015431,2]
[398065476,1765347067592,-598.0,0.00015431,2]
[398065477,1765347067601,-500.0,0.00015431,2]
[398065478,1765347067610,-500.0,0.00015431,2]
[398065479,1765347067619,-500.0,0.00015431,2]
[398065480,1765347067628,-500.0,0.00015431,2]
[398065481,1765347067637,-500.0,0.00015431,2]
[398065482,1765347067648,-596.68,0.00015431,2]
[398065483,1765347067658,-1000.0,0.00015431,2]
[398065484,1765347067668,-500.0,0.00015431,2]
[398065485,1765347067677,-675.94,0.00015431,2]
[398065486,1765347067686,-650.27,0.00015431,2]
[398065487,1765347067695,-572.93207568,0.00015432,2]
[398065488,1765347067704,-200.0,0.00015432,2]
[398065489,1765347067716,-547.3196796,0.00015432,2]
[398065490,1765347067724,-500.0,0.00015432,2]
[398065491,1765347067735,-500.0,0.00015432,2]
[398065492,1765347067745,-509.53851417,0.00015432,2]
[398065493,1765347067755,-500.0,0.00015432,2]
[398065494,1765347067764,-500.0,0.00015432,2]
[398065495,1765347067773,-500.0,0.00015432,2]
[398065496,1765347067783,-500.0,0.00015432,2]
[398065497,1765347067791,-500.0,0.00015432,2]
[398065498,1765347067801,-58090.75513339,0.00015432,2]
[398065499,1765347068779,-500.0,0.00014783,2]
[398065500,1765347068790,-500.0,0.00015057,2]
[398065501,1765347068800,-1580.0,0.00015092,2]
[398065502,1765347068898,-347.13047202,0.00015092,2]
[398065503,1765347069836,-500.0,0.00014783,2]
[398065504,1765347069846,-5799.47656402,0.00015092,2]
[398065505,1765347069857,-500.0,0.00015331,2]
[398065506,1765347069866,-7726.60703604,0.00015347,2]
[398065507,1765347069876,-43407.00370091,0.00015432,2]
[398065508,1765347069886,-500.0,0.00015432,2]
[398065509,1765347069896,-509.04259007,0.00015432,2]
[398065510,1765347069906,-678.34,0.00015432,2]
[398065511,1765347069916,-500.0,0.00015432,2]
[398065512,1765347069926,-505.73642412,0.00015432,2]
[398065513,1765347069935,-500.0,0.00015432,2]
[398065514,1765347069945,-500.0,0.00015432,2]
[398065515,1765347069954,-500.0,0.00015432,2]
[398065516,1765347069964,-500.0,0.00015432,2]
[398065517,1765347069973,-674.29,0.00015432,2]
[398065518,1765347069983,-500.0,0.00015432,2]